bitfinex/quotes_BTCUSD_20241119
["timestamp","ask_amount","ask_price","bid_price","bid_amount"]
[1731988682856,2.09100274,91475.0,91474.0,0.0107092]
[1731988683077,2.08300274,91475.0,91474.0,0.0107092]
[1731988683326,1.98472895,91475.0,91474.0,0.0107092]
[1731988684265,2.08300274,91475.0,91474.0,0.0107092]
[1731988684486,1.98472895,91475.0,91474.0,0.0107092]
[1731988685367,2.08300274,91475.0,91474.0,0.0107092]
[1731988686655,2.08010571,91475.0,91474.0,0.0107092]
[1731988687336,2.23855513,91475.0,91474.0,0.0107092]
[1731988687580,1.98183192,91475.0,91474.0,0.0107092]
[1731988688459,2.12923613,91475.0,91474.0,0.0107092]
[1731988688885,2.1292765,91475.0,91474.0,0.0107092]
[1731988689742,2.75968256,91475.0,91474.0,0.0107092]
[1731988689956,2.85683075,91475.0,91474.0,0.0107092]
[1731988690246,2.69278978,91475.0,91474.0,0.0107092]
[1731988693289,2.72691792,91475.0,91474.0,0.0107092]
[1731988693722,2.69278978,91475.0,91474.0,0.0107092]
[1731988693936,2.69265152,91475.0,91474.0,0.0107092]
[1731988696649,2.70465152,91475.0,91474.0,0.0107092]
[1731988696845,2.69465152,91475.0,91474.0,0.0107092]
[1731988697056,2.6798548,91475.0,91474.0,0.0107092]
[1731988697920,2.6778548,91475.0,91474.0,0.0107092]
[1731988698776,2.6698548,91475.0,91474.0,0.0107092]
[1731988698987,2.30711675,91475.0,91474.0,0.0107092]
[1731988699200,2.66870085,91475.0,91474.0,0.0047092]
[1731988699610,2.66970085,91475.0,91474.0,0.0107092]
[1731988699839,2.76100641,91475.0,91474.0,0.0107092]
[1731988700036,2.76000641,91475.0,91474.0,0.0017092]
[1731988700252,2.80200641,91475.0,91474.0,0.0067092]
[1731988700892,2.80100641,91475.0,91474.0,0.0027092]
[1731988701137,2.81000641,91475.0,91474.0,0.0037092]
[1731988701965,3.44607155,91475.0,91474.0,0.0037092]
[1731988702167,4.33097682,91475.0,91474.0,0.0037092]
[1731988702584,3.99947135,91475.0,91474.0,0.0037092]
[1731988703292,4.33069153,91475.0,91474.0,0.0037092]
[1731988705081,3.40009163,91475.0,91474.0,0.0037092]
[1731988705959,2.85882503,91475.0,91474.0,0.0037092]
[1731988706168,2.81382503,91475.0,91474.0,0.0037092]
[1731988706378,3.06900318,91475.0,91474.0,0.0037092]
[1731988706585,3.05900318,91475.0,91474.0,0.0037092]
[1731988707016,2.81382503,91475.0,91474.0,0.0037092]
[1731988707239,2.68412503,91475.0,91474.0,0.0037092]
[1731988707473,2.78025325,91475.0,91474.0,0.0037092]
[1731988707668,2.36893755,91475.0,91474.0,0.0037092]
[1731988707909,2.11252554,91475.0,91474.0,0.0037092]
[1731988708361,2.00346299,91475.0,91474.0,0.1130292]
[1731988708578,2.00346299,91475.0,91474.0,0.1909292]
[1731988709672,1.98646299,91475.0,91474.0,0.1899292]
[1731988709884,1.97946299,91475.0,91474.0,0.1889292]
[1731988710093,1.98046299,91475.0,91474.0,0.1899292]
[1731988711172,1.98046195,91475.0,91474.0,0.1899292]
[1731988713769,1.97246195,91475.0,91474.0,0.1899292]
[1731988713987,1.97146195,91475.0,91474.0,0.1889292]
[1731988714422,1.97246195,91475.0,91474.0,0.1899292]
[1731988714842,1.97146195,91475.0,91474.0,0.1889292]
[1731988715733,1.97146195,91475.0,91474.0,0.2362292]
[1731988716728,1.97246195,91475.0,91474.0,0.2372292]
[1731988718292,1.9520352,91475.0,91474.0,0.2372292]
[1731988718503,1.97245842,91475.0,91474.0,0.2372292]
[1731988719779,1.97245842,91475.0,91474.0,0.0027092]
[1731988719989,2.08152097,91475.0,91474.0,0.0027092]
[1731988720192,2.11419781,91475.0,91474.0,0.0027092]
[1731988720889,2.11419641,91475.0,91474.0,0.0027092]
[1731988721100,2.00413386,91475.0,91474.0,0.1110292]
[1731988721527,1.9847113,91475.0,91474.0,0.1120292]
[1731988721731,1.9520352,91475.0,91474.0,0.1120292]
[1731988722164,1.9500352,91475.0,91474.0,0.1120292]
[1731988722367,1.9714553,91475.0,91474.0,0.1140292]
[1731988722780,1.9704553,91475.0,91474.0,0.1120292]
[1731988722991,1.9714553,91475.0,91474.0,0.1140292]
[1731988723456,1.9704553,91475.0,91474.0,0.1130292]
[1731988723700,1.9714553,91475.0,91474.0,0.1140292]
[1731988723907,1.9714553,91475.0,91474.0,0.27383476]
[1731988724564,1.9510352,91475.0,91474.0,0.27383476]
[1731988725432,1.97144871,91475.0,91474.0,0.27383476]
[1731988725639,1.9510352,91475.0,91474.0,0.27383476]
[1731988727832,1.9510352,91475.0,91474.0,0.1925292]
[1731988728917,1.9430352,91475.0,91474.0,0.1925292]
[1731988729127,1.9430352,91475.0,91474.0,0.1140292]
[1731988731332,1.9430352,91475.0,91466.0,0.266959]
[1731988731555,1.9430352,91475.0,91474.0,0.10932]
[1731988732427,1.9420352,91475.0,91474.0,0.10932]
[1731988732638,1.9440352,91475.0,91474.0,0.10932]
[1731988732848,1.9430352,91475.0,91474.0,0.10932]
[1731988733056,1.9450352,91475.0,91474.0,0.10932]
[1731988733275,1.9460352,91475.0,91474.0,0.11132]
[1731988733480,1.96445777,91475.0,91474.0,0.11132]
[1731988733904,1.96545777,91475.0,91474.0,0.11132]
[1731988734802,1.96545777,91475.0,91474.0,0.19262556]
[1731988736389,1.96545777,91475.0,91474.0,0.24072556]
[1731988736810,1.9450352,91475.0,91474.0,0.24072556]
[1731988737255,1.96549258,91475.0,91474.0,0.24072556]
[1731988738403,1.96549258,91475.0,91474.0,0.24243456]
[1731988739552,1.9450352,91475.0,91474.0,0.24243456]
[1731988739969,1.96549787,91475.0,91474.0,0.24243456]
[1731988740185,1.9450352,91475.0,91474.0,0.24243456]
[1731988740405,1.9450352,91475.0,91474.0,0.25243456]
[1731988740848,1.9450352,91475.0,91474.0,0.32863456]
[1731988741649,1.96549788,91475.0,91474.0,0.19433456]
[1731988742060,1.96549788,91475.0,91474.0,0.20433456]
[1731988742266,1.96549788,91475.0,91474.0,0.19433456]
[1731988742894,1.96549695,91475.0,91474.0,0.19433456]
[1731988743804,1.96549695,91475.0,91474.0,0.113029]
[1731988744027,1.95749695,91475.0,91474.0,0.113029]
[1731988744289,1.99023828,91475.0,91474.0,0.113029]
[1731988745823,1.99023828,91475.0,91474.0,0.11157753]
[1731988746499,1.98923828,91475.0,91474.0,0.11157753]
[1731988749349,2.07023828,91475.0,91474.0,0.003709]
[1731988750455,2.07023828,91475.0,91474.0,0.113029]
[1731988750678,2.07023828,91475.0,91474.0,0.003709]
[1731988751356,2.28861983,91475.0,91474.0,0.003709]
[1731988751570,2.17930083,91475.0,91474.0,0.003709]
[1731988752018,2.28861983,91475.0,91474.0,0.003709]
[1731988752239,2.17930083,91475.0,91474.0,0.003709]
[1731988752683,2.09830083,91475.0,91474.0,0.113029]
[1731988752930,2.09830083,91475.0,91474.0,0.003709]
[1731988755776,2.25681983,91475.0,91474.0,0.003709]
[1731988755981,2.81558901,91475.0,91474.0,0.003709]
[1731988756195,2.61943506,91475.0,91474.0,0.003709]
[1731988756407,2.29484574,91475.0,91474.0,0.003709]
[1731988756985,2.29484188,91475.0,91474.0,0.003709]
[1731988758042,2.33661983,91475.0,91474.0,0.003709]
[1731988758260,2.6991961,91475.0,91474.0,0.003709]
[1731988758471,2.94438854,91475.0,91474.0,0.003709]
[1731988758673,2.93668982,91475.0,91474.0,0.003709]
[1731988758896,2.93568982,91475.0,91474.0,0.003709]
[1731988759091,2.69015998,91475.0,91474.0,0.001709]
[1731988759321,2.58084098,91475.0,91474.0,0.001709]
[1731988759535,2.58283271,91475.0,91474.0,0.001709]
[1731988759813,2.57782657,91475.0,91474.0,0.001709]
[1731988760067,2.23128642,91475.0,91474.0,0.001709]
[1731988760485,2.21528642,91475.0,91474.0,0.111029]
[1731988760990,2.16209775,91475.0,91474.0,0.111029]
[1731988761215,2.09628071,91475.0,91474.0,0.111029]
[1731988762506,2.08628071,91475.0,91474.0,0.111029]
[1731988762943,2.10228071,91475.0,91474.0,0.111029]
[1731988763145,2.09228071,91475.0,91474.0,0.111029]
[1731988763356,2.0862741,91475.0,91474.0,0.111029]
[1731988763566,2.0962741,91475.0,91474.0,0.111029]
[1731988764003,2.0902741,91475.0,91474.0,0.111029]
[1731988764209,2.0862741,91475.0,91474.0,0.111029]
[1731988764417,2.0892741,91475.0,91474.0,0.111029]
[1731988764869,2.18744775,91475.0,91474.0,0.111029]
[1731988765708,2.18744229,91475.0,91474.0,0.111029]
[1731988770281,2.32318764,91475.0,91474.0,0.001709]
[1731988770548,2.71832496,91475.0,91474.0,0.001709]
[1731988770780,2.88193431,91475.0,91474.0,0.001709]
[1731988770994,2.82876342,91475.0,91474.0,0.001709]
[1731988771213,2.68559756,91475.0,91474.0,0.001709]
[1731988771876,2.68459756,91475.0,91474.0,0.001709]
[1731988772016,2.68859756,91475.0,91474.0,0.001709]
[1731988772265,2.33620594,91475.0,91474.0,0.001709]
[1731988772703,2.69856549,91475.0,91474.0,0.001709]
[1731988772906,2.89490671,91475.0,91474.0,0.001709]
[1731988773172,2.69856549,91475.0,91474.0,0.001709]
[1731988773386,2.33620594,91475.0,91474.0,0.001709]
[1731988773599,2.48344311,91475.0,91474.0,0.001709]
[1731988773807,2.47544349,91475.0,91474.0,0.001709]
[1731988774241,2.6905504,91475.0,91474.0,0.001709]
[1731988774669,2.32820594,91475.0,91474.0,0.001709]
[1731988775096,2.31820594,91475.0,91474.0,0.001709]
[1731988775313,2.31220594,91475.0,91474.0,0.001709]
[1731988775530,2.32220594,91475.0,91474.0,0.001709]
[1731988775751,2.32820594,91475.0,91474.0,0.001709]
[1731988776435,2.88683336,91475.0,91474.0,0.001709]
[1731988776668,2.88683336,91475.0,91470.0,0.0017092]
[1731988776669,0.109324,91471.0,91470.0,0.0017092]
[1731988776883,0.39876361,91471.0,91470.0,0.0017092]
[1731988777095,0.84019848,91471.0,91470.0,0.0017092]
[1731988777773,0.78700929,91471.0,91470.0,0.0017092]
[1731988777991,0.8402204,91471.0,91470.0,0.0017092]
[1731988778691,0.8662204,91471.0,91470.0,0.0017092]
[1731988778919,0.8682204,91471.0,91470.0,0.0017092]
[1731988779162,0.9782204,91471.0,91470.0,0.0017092]
[1731988779921,0.9882204,91471.0,91470.0,0.0017092]
[1731988780053,1.02231372,91471.0,91470.0,0.0017092]
[1731988780267,1.02220427,91471.0,91470.0,0.0017092]
[1731988780484,0.377325,91470.0,91469.0,0.00137888]
[1731988780709,0.93789227,91470.0,91469.0,0.00137888]
[1731988782680,0.94889227,91470.0,91469.0,0.00137888]
[1731988782894,1.26309032,91470.0,91469.0,0.00137888]
[1731988783111,1.26308828,91470.0,91469.0,0.00137888]
[1731988783332,1.80098828,91470.0,91469.0,0.00137888]
[1731988784022,1.50679227,91470.0,91469.0,0.00137888]
[1731988784682,1.80091696,91470.0,91469.0,0.00137888]
[1731988784897,1.45358116,91470.0,91469.0,0.00137888]
[1731988785135,1.50670959,91470.0,91469.0,0.00137888]
[1731988785408,1.50641311,91470.0,91469.0,0.00137888]
[1731988785620,1.80056166,91470.0,91469.0,0.00137888]
[1731988786069,1.50641311,91470.0,91469.0,0.00137888]
[1731988786294,0.96851311,91470.0,91469.0,0.00137888]
[1731988787151,0.93442723,91470.0,91469.0,0.00137888]
[1731988788479,0.93440441,91470.0,91469.0,0.00137888]
[1731988788873,0.91540441,91470.0,91469.0,0.00117667]
[1731988789256,0.90440441,91470.0,91469.0,0.00117667]
[1731988789456,0.92640441,91470.0,91469.0,0.00117667]
[1731988790109,0.92630142,91470.0,91469.0,0.00117667]
[1731988790457,0.91430142,91470.0,91469.0,0.00117667]
[1731988791619,0.88330142,91470.0,91469.0,0.00117667]
[1731988791817,1.12833458,91470.0,91469.0,0.00117667]
[1731988792022,1.11822969,91470.0,91469.0,0.00117667]
[1731988792232,1.0723176,91470.0,91469.0,0.00117667]
[1731988792589,1.0763176,91470.0,91469.0,0.00117667]
[1731988792797,0.8539926,91470.0,91469.0,0.00117667]
[1731988793048,0.8319926,91470.0,91469.0,0.00117667]
[1731988793268,0.9393176,91470.0,91469.0,0.00117667]
[1731988793496,0.9293176,91470.0,91469.0,0.00117667]
[1731988793722,0.8259926,91470.0,91469.0,0.00117667]
[1731988794808,0.8359926,91470.0,91469.0,0.00117667]
[1731988795025,0.74929389,91470.0,91469.0,0.00117667]
[1731988795321,0.74937262,91470.0,91469.0,0.00117667]
[1731988795550,0.64091903,91470.0,91469.0,0.00117667]
[1731988795776,0.83699915,91470.0,91469.0,0.00117667]
[1731988796002,0.94632415,91470.0,91469.0,0.00117667]
[1731988796226,0.75024403,91470.0,91469.0,0.00117667]
[1731988797322,0.73700792,91470.0,91469.0,0.00117667]
[1731988797550,0.54091903,91470.0,91469.0,0.11050267]
[1731988798293,0.32610499,91470.0,91469.0,0.11050267]
[1731988798510,0.17903204,91470.0,91469.0,0.11050267]
[1731988798745,0.32611165,91470.0,91469.0,0.11050267]
[1731988798954,0.30568285,91470.0,91469.0,0.11050267]
[1731988799195,0.32613214,91470.0,91469.0,0.11050267]
[1731988799709,0.17905253,91470.0,91469.0,0.11050267]
[1731988801209,0.27711286,91470.0,91469.0,0.11050267]
[1731988801633,0.17905253,91470.0,91469.0,0.11050267]
[1731988802079,0.06998998,91470.0,91469.0,0.11050267]
[1731988803124,0.06998998,91470.0,91469.0,0.11850267]
[1731988803324,0.06398998,91470.0,91469.0,0.11850267]
[1731988803761,0.05598998,91470.0,91469.0,0.11850267]
[1731988804169,0.05598998,91470.0,91469.0,0.27650823]
[1731988804170,0.05398998,91470.0,91469.0,0.27650823]
[1731988804379,0.05398998,91470.0,91469.0,0.27850823]
[1731988804637,0.05598998,91470.0,91469.0,0.27850823]
[1731988804849,0.05398998,91470.0,91469.0,0.27650823]
[1731988805300,0.05398998,91470.0,91469.0,0.27850823]
[1731988805301,0.05698998,91470.0,91469.0,0.27850823]
[1731988805722,0.05398998,91470.0,91469.0,0.27650823]
[1731988805947,1.97117048,91470.0,91469.0,0.28050823]
[1731988806080,1.93847178,91470.0,91469.0,0.32810823]
[1731988806287,1.94047178,91470.0,91469.0,0.32910823]
[1731988806490,1.9200351,91470.0,91469.0,0.32910823]
[1731988808012,1.9200351,91470.0,91469.0,0.33910823]
[1731988808233,1.9200351,91470.0,91469.0,0.34910823]
[1731988809095,1.91990871,91470.0,91469.0,0.26780267]
[1731988809293,1.91990871,91470.0,91469.0,0.34910823]
[1731988810125,1.91990871,91470.0,91469.0,0.26780267]
[1731988810405,1.91990871,91470.0,91469.0,0.34910823]
[1731988812105,1.91990871,91470.0,91469.0,0.24780267]
[1731988812315,1.91990871,91470.0,91469.0,0.12350267]
[1731988813173,1.94030457,91470.0,91469.0,0.12350267]
[1731988813382,1.94030457,91470.0,91469.0,0.00617667]
[1731988813383,2.04936712,91470.0,91469.0,0.00617667]
[1731988813590,2.08200484,91470.0,91469.0,0.01417667]
[1731988815318,2.08187845,91470.0,91469.0,0.01417667]
[1731988815529,2.08140093,91470.0,91469.0,0.01417667]
[1731988815756,2.19072593,91470.0,91469.0,0.00617667]
[1731988816418,2.08140093,91470.0,91469.0,0.01417667]
[1731988816631,2.19072593,91470.0,91469.0,0.00617667]
[1731988816849,2.19072593,91470.0,91453.0,0.16451496]
[1731988816850,0.109329,91467.0,91460.0,0.109336]
[1731988817054,0.12945841,91466.0,91461.0,0.109335]
[1731988817254,0.02039586,91465.0,91462.0,0.109334]
[1731988817477,0.12945841,91464.0,91456.0,0.109341]
[1731988817698,0.02039586,91463.0,91456.0,0.109341]
[1731988817896,0.16209613,91462.0,91454.0,0.1110536]
[1731988818212,0.02039586,91461.0,91460.0,0.001]
[1731988818386,0.12947597,91461.0,91460.0,0.001]
[1731988818587,0.12947597,91461.0,91460.0,0.008]
[1731988818795,0.12147597,91461.0,91457.0,0.10934]
[1731988819008,0.10906255,91460.0,91457.0,0.10934]
[1731988819235,0.10906255,91460.0,91456.0,0.001]
[1731988819444,0.03266148,91459.0,91456.0,0.001]
[1731988819660,0.10906255,91458.0,91456.0,0.001]
[1731988819868,0.14108691,91458.0,91456.0,0.001]
[1731988820078,0.10842543,91458.0,91456.0,0.001]
[1731988820295,0.10842543,91458.0,91455.0,0.109342]
[1731988820523,0.10842543,91458.0,91456.0,0.109341]
[1731988820746,0.10842543,91458.0,91457.0,0.109341]
[1731988821190,0.1082352,91458.0,91457.0,0.109341]
[1731988821397,0.1132352,91458.0,91457.0,0.109341]
[1731988821602,0.1102352,91458.0,91454.0,0.0017096]
[1731988821819,0.109343,91455.0,91454.0,0.0017096]
[1731988822030,0.21840555,91455.0,91454.0,0.0017096]
[1731988822258,0.2510849,91455.0,91454.0,0.0017096]
[1731988822680,0.25089465,91455.0,91454.0,0.0017096]
[1731988822896,0.25289465,91455.0,91454.0,0.0017096]
[1731988823746,0.25389465,91455.0,91454.0,0.0017096]
[1731988824394,0.001,91455.0,91454.0,0.1160536]
[1731988824625,0.006,91455.0,91454.0,0.1110536]
[1731988824862,0.013,91455.0,91454.0,0.1120536]
[1731988825073,0.008,91455.0,91454.0,0.1120536]
[1731988825301,0.16445655,91469.0,91464.0,0.109332]
[1731988825302,0.03267935,91465.0,91464.0,0.109332]
[1731988825512,0.03267935,91468.0,91467.0,0.109329]
[1731988825724,0.1417419,91468.0,91467.0,0.109329]
[1731988826191,0.14151334,91468.0,91467.0,0.109329]
[1731988826810,0.10906255,91468.0,91462.0,0.218668]
[1731988827019,0.10906255,91467.0,91466.0,0.10933]
[1731988828324,0.10906255,91467.0,91463.0,0.218667]
[1731988828325,0.001,91468.0,91467.0,0.109329]
[1731988830087,0.002,91468.0,91467.0,0.109329]
[1731988830324,0.001,91468.0,91467.0,0.109329]
[1731988830553,0.002,91468.0,91467.0,0.114329]
[1731988830807,0.02241598,91468.0,91467.0,0.114329]
[1731988833760,0.01441598,91468.0,91467.0,0.114329]
[1731988836146,0.0008547,91475.0,91467.0,0.005]
[1731988836371,2.02509765,91470.0,91469.0,0.109326]
[1731988836589,2.05776532,91470.0,91469.0,0.109326]
[1731988837497,2.05876532,91470.0,91469.0,0.109326]
[1731988837724,2.05976532,91470.0,91469.0,0.112326]
[1731988837946,2.05876532,91470.0,91469.0,0.112326]
[1731988838181,2.05976532,91470.0,91469.0,0.113326]
[1731988839040,2.05962693,91470.0,91469.0,0.113326]
[1731988841701,2.05962693,91470.0,91469.0,0.004]
[1731988841926,2.14082693,91470.0,91469.0,0.004]
[1731988842161,2.25015193,91470.0,91469.0,0.004]
[1731988842383,2.21748426,91470.0,91469.0,0.004]
[1731988842627,2.25018751,91470.0,91469.0,0.004]
[1731988843081,2.39715721,91470.0,91469.0,0.004]
[1731988843314,2.34825214,91470.0,91469.0,0.004]
[1731988843565,2.25018751,91470.0,91469.0,0.004]
[1731988845851,2.27062894,91470.0,91469.0,0.004]
[1731988847285,2.08010394,91470.0,91469.0,0.004]
[1731988847510,2.08010394,91470.0,91469.0,0.113326]
[1731988848396,1.97104139,91470.0,91469.0,0.113326]
[1731988848817,1.96304139,91470.0,91469.0,0.113326]
[1731988849295,1.96104139,91470.0,91469.0,0.109326]
[1731988849508,1.96204139,91470.0,91469.0,0.112326]
[1731988849729,1.93033814,91470.0,91469.0,0.112326]
[1731988849942,1.92933814,91470.0,91469.0,0.112326]
[1731988850163,1.93033814,91470.0,91469.0,0.112326]
[1731988850386,1.92933814,91470.0,91469.0,0.109326]
[1731988850847,1.93033814,91470.0,91469.0,0.112326]
[1731988851729,1.96304119,91470.0,91469.0,0.112326]
[1731988852165,1.93033814,91470.0,91469.0,0.112326]
[1731988852615,1.96304079,91470.0,91469.0,0.112326]
[1731988853479,1.9630682,91470.0,91469.0,0.112326]
[1731988854129,1.9630682,91470.0,91469.0,0.1140352]
[1731988860628,1.96310017,91470.0,91469.0,0.1140352]
[1731988861346,2.07216272,91470.0,91469.0,0.0047092]
[1731988861556,2.18148772,91470.0,91469.0,0.0047092]
[1731988863521,2.07216272,91470.0,91469.0,0.0047092]
[1731988863731,2.17348772,91470.0,91469.0,0.0047092]
[1731988864183,2.17148772,91470.0,91469.0,0.0017092]
[1731988864408,2.17348772,91470.0,91469.0,0.0017092]
[1731988864925,2.17448772,91470.0,91469.0,0.0027092]
[1731988868317,2.27259184,91470.0,91469.0,0.0027092]
[1731988869195,1.95610017,91470.0,91469.0,0.1120352]
[1731988873232,1.95609435,91470.0,91469.0,0.1120352]
[1731988873437,1.95609435,91470.0,91469.0,0.19333214]
[1731988875395,2.0651569,91470.0,91469.0,0.0027092]
[1731988875601,2.16034291,91470.0,91469.0,0.0017092]
[1731988875829,2.0621569,91470.0,91469.0,0.0017092]
[1731988876034,2.0641569,91470.0,91469.0,0.0027092]
[1731988876291,2.0661569,91470.0,91469.0,0.0077092]
[1731988876476,2.0661569,91470.0,91469.0,0.1170352]
[1731988876978,2.0641569,91470.0,91469.0,0.1160352]
[1731988877234,2.0631569,91470.0,91469.0,0.1120352]
[1731988877654,2.0651569,91470.0,91469.0,0.1180352]
[1731988878944,2.0571569,91470.0,91469.0,0.19933214]
[1731988879195,1.94809435,91470.0,91469.0,0.19933214]
[1731988880306,1.94811861,91470.0,91469.0,0.19933214]
[1731988880736,1.89489671,91470.0,91469.0,0.19933214]
[1731988880944,1.9481168,91470.0,91469.0,0.19933214]
[1731988881158,1.94811653,91470.0,91469.0,0.19933214]
[1731988881365,1.91536597,91470.0,91469.0,0.19933214]
[1731988882338,1.91536597,91470.0,91469.0,0.1180352]
[1731988884038,1.94811365,91470.0,91469.0,0.1180352]
[1731988887928,1.91536597,91470.0,91469.0,0.1180352]
[1731988891880,1.91536597,91470.0,91469.0,0.1380352]
[1731988893769,1.90736597,91470.0,91469.0,0.1380352]
[1731988894428,1.90735765,91470.0,91469.0,0.1380352]
[1731988895594,1.90735765,91470.0,91469.0,0.1280352]
[1731988895840,1.90735765,91470.0,91469.0,0.1380352]
[1731988897740,1.90736272,91470.0,91469.0,0.1280352]
[1731988898604,1.88689671,91470.0,91469.0,0.1280352]
[1731988898851,1.94011631,91470.0,91469.0,0.1280352]
[1731988899262,1.9392417,91470.0,91469.0,0.1280352]
[1731988901173,1.8860221,91470.0,91469.0,0.1280352]
[1731988901383,1.93924564,91470.0,91469.0,0.1280352]
[1731988902009,1.93924564,91470.0,91469.0,0.1180352]
[1731988902861,1.8860221,91470.0,91469.0,0.1280352]
[1731988903102,1.90649388,91470.0,91469.0,0.1280352]
[1731988903323,1.93925087,91470.0,91469.0,0.1280352]
[1731988903538,1.93925087,91470.0,91469.0,0.1180352]
[1731988903744,1.93925087,91470.0,91469.0,0.1280352]
[1731988904369,1.93925087,91470.0,91469.0,0.20932258]
[1731988904838,1.93925087,91470.0,91469.0,0.19932258]
[1731988905069,1.8860221,91470.0,91469.0,0.19932258]
[1731988905494,1.90649376,91470.0,91469.0,0.20932258]
[1731988905719,1.93924842,91470.0,91469.0,0.20932258]
[1731988906335,1.93924842,91470.0,91469.0,0.19932258]
[1731988906546,1.93924842,91470.0,91469.0,0.20932258]
[1731988908520,1.93926462,91470.0,91469.0,0.20932258]
[1731988908952,1.93126462,91470.0,91469.0,0.20932258]
[1731988912108,1.93127439,91470.0,91469.0,0.20932258]
[1731988912590,1.93127439,91470.0,91469.0,0.21932258]
[1731988912797,1.93127439,91470.0,91469.0,0.34482258]
[1731988914068,1.89850375,91470.0,91469.0,0.34482258]
[1731988915598,1.89850375,91470.0,91469.0,0.33482258]
[1731988915805,1.89850375,91470.0,91469.0,0.34482258]
[1731988917965,1.89850375,91470.0,91469.0,0.52610996]
[1731988918647,1.8780221,91470.0,91469.0,0.52610996]
[1731988922172,1.8780221,91470.0,91469.0,0.55710996]
[1731988922403,1.8820221,91470.0,91469.0,0.56910996]
[1731988923064,1.8810221,91470.0,91469.0,0.47582258]
[1731988923726,1.8810221,91470.0,91469.0,0.55710996]
[1731988923951,1.8750221,91470.0,91469.0,0.57210996]
[1731988924209,1.8750221,91470.0,91469.0,0.49082258]
[1731988924455,1.8750221,91470.0,91469.0,0.2840352]
[1731988924685,1.8750221,91470.0,91469.0,0.36532258]
[1731988929233,1.8750221,91470.0,91469.0,0.49262258]
[1731988929658,1.8750221,91470.0,91469.0,0.57390996]
[1731988929873,1.8750221,91470.0,91469.0,0.49262258]
[1731988930109,1.8750221,91470.0,91469.0,0.57390996]
[1731988931004,1.8750221,91470.0,91469.0,0.4113352]
[1731988931246,1.8750221,91470.0,91469.0,0.49262258]
[1731988931939,1.7656971,91470.0,91469.0,0.68297251]
[1731988932163,1.34672223,91470.0,91469.0,0.68497251]
[1731988932398,1.32485723,91470.0,91469.0,0.68497251]
[1731988932613,1.23739723,91470.0,91469.0,0.68497251]
[1731988932831,1.22939723,91470.0,91469.0,0.63197251]
[1731988933046,1.23239723,91470.0,91469.0,0.63997251]
[1731988934217,1.23539723,91470.0,91469.0,0.65897251]
[1731988934890,1.23239723,91470.0,91469.0,0.65097251]
[1731988935344,1.23439723,91470.0,91469.0,0.67297251]
[1731988938493,1.23439723,91470.0,91469.0,0.51039775]
[1731988938706,1.23439723,91470.0,91469.0,0.67297251]
[1731988938914,1.22639723,91470.0,91469.0,0.67297251]
[1731988939128,1.22639723,91470.0,91469.0,0.51039775]
[1731988939359,1.20139723,91470.0,91469.0,0.67297251]
[1731988939998,1.20139723,91470.0,91469.0,0.50839775]
[1731988940209,1.20139723,91470.0,91469.0,0.54118513]
[1731988940872,1.20139723,91470.0,91469.0,0.62247251]
[1731988941298,1.20139723,91470.0,91469.0,0.35332258]
[1731988943600,1.20139723,91470.0,91469.0,0.2720352]
[1731988943812,1.20139723,91470.0,91469.0,0.35332258]
[1731988947616,1.20139723,91470.0,91469.0,0.54367251]
[1731988947826,1.20139723,91470.0,91469.0,0.62077251]
[1731988949392,1.20139723,91470.0,91469.0,0.66837251]
[1731988949617,1.15766723,91470.0,91469.0,0.66837251]
[1731988949836,1.13580223,91470.0,91469.0,0.66837251]
[1731988950064,1.09207223,91470.0,91469.0,0.66837251]
[1731988950979,1.02647723,91470.0,91469.0,0.66837251]
[1731988951206,1.02647723,91470.0,91469.0,0.69137251]
[1731988951207,0.93727257,91470.0,91469.0,0.69137251]
[1731988951435,0.84981257,91470.0,91469.0,0.69137251]
[1731988951654,0.82794757,91470.0,91469.0,0.69137251]
[1731988952135,0.74147301,91470.0,91469.0,0.48379775]
[1731988952360,0.74047301,91470.0,91469.0,0.65537251]
[1731988953239,0.74047301,91470.0,91469.0,0.68337251]
[1731988953450,0.74047301,91470.0,91469.0,0.2590352]
[1731988953662,0.74047301,91470.0,91469.0,0.36832258]
[1731988953886,0.73047301,91470.0,91469.0,0.34032258]
[1731988954314,0.73047301,91470.0,91469.0,0.36832258]
[1731988955193,0.73047301,91470.0,91469.0,0.26832258]
[1731988955879,0.73047301,91470.0,91469.0,0.24032258]
[1731988956115,0.73047301,91470.0,91469.0,0.26932258]
[1731988956338,0.73047301,91470.0,91469.0,0.28287075]
[1731988956557,0.73047301,91470.0,91469.0,0.38287075]
[1731988956778,0.73047301,91470.0,91469.0,0.2780352]
[1731988957018,0.87453355,91470.0,91469.0,0.1110352]
[1731988957315,0.87453355,91470.0,91469.0,0.1400352]
[1731988957523,0.90826515,91470.0,91469.0,0.1620352]
[1731988958433,0.90826515,91470.0,91465.0,0.218662]
[1731988958638,0.90826515,91470.0,91464.0,0.0017092]
[1731988958639,0.05538001,91469.0,91464.0,0.0017092]
[1731988958850,0.10019214,91468.0,91464.0,0.0017092]
[1731988959089,0.109331,91465.0,91464.0,0.0017092]
[1731988959298,0.24601101,91465.0,91464.0,0.0017092]
[1731988959514,0.24382314,91465.0,91464.0,0.0017092]
[1731988959717,0.39988569,91465.0,91464.0,0.0017092]
[1731988959938,0.39983076,91465.0,91464.0,0.0017092]
[1731988960607,0.237643,91455.0,91454.0,0.0017096]
[1731988960819,0.36714294,91455.0,91454.0,0.0017096]
[1731988961297,0.39984276,91455.0,91454.0,0.0017096]
[1731988961721,0.260648,91451.0,91450.0,8.5001]
[1731988961928,0.39014794,91451.0,91450.0,8.5001]
[1731988962806,0.36714794,91451.0,91450.0,8.5001]
[1731988963280,0.41514794,91451.0,91450.0,8.5021]
[1731988963491,0.41514794,91451.0,91450.0,8.5001]
[1731988963696,0.43214794,91451.0,91450.0,8.5021]
[1731988963919,0.43614794,91451.0,91450.0,8.5031]
[1731988964372,0.40914794,91451.0,91450.0,8.5011]
[1731988964577,0.43614794,91451.0,91450.0,8.5031]
[1731988965506,0.42114794,91451.0,91450.0,8.5031]
[1731988965734,0.39414794,91451.0,91450.0,8.5021]
[1731988965943,0.40914794,91451.0,91450.0,8.5041]
[1731988966159,0.40914794,91451.0,91450.0,8.5021]
[1731988966605,0.42414794,91451.0,91450.0,8.5041]
[1731988968779,0.41614794,91451.0,91450.0,8.5041]
[1731988971186,0.41614794,91451.0,91450.0,8.5049546]
[1731988971405,0.20573739,91451.0,91450.0,8.6143036]
[1731988971632,0.057,91451.0,91450.0,8.6143036]
[1731988972263,0.027,91451.0,91450.0,8.6123036]
[1731988972490,0.04743739,91451.0,91450.0,8.6123036]
[1731988972806,0.04743739,91451.0,91450.0,8.6143036]
[1731988972888,0.06143739,91451.0,91450.0,8.6143036]
[1731988973111,0.06143739,91451.0,91450.0,8.6123036]
[1731988973330,0.04343739,91451.0,91450.0,8.6103036]
[1731988973547,0.04843739,91451.0,91450.0,8.6123036]